bitfinex-derivatives/quotes_ETHF0:USTF0_20250430
["timestamp","ask_amount","ask_price","bid_price","bid_amount"]
[1745991803169,2.8606,1805.3,1805.2,1.723]
[1745991806871,4.0113,1805.4,1805.2,2.83063]
[1745991807169,1.10757,1805.3,1805.2,2.83063]
[1745991808062,1.10757,1805.3,1805.2,1.723]
[1745991808263,2.70877,1805.3,1805.2,1.723]
[1745991808462,2.70877,1805.3,1805.2,2.83063]
[1745991808769,1.10757,1805.3,1805.2,2.83063]
[1745991809772,1.10757,1805.3,1805.2,1.723]
[1745991810270,2.81187,1805.3,1805.2,1.723]
[1745991811168,2.81187,1805.3,1805.2,5.551]
[1745991811565,2.81187,1805.3,1805.2,6.65863]
[1745991814365,2.81187,1805.3,1805.2,2.83063]
[1745991814774,1.7043,1805.3,1805.2,2.83063]
[1745991815071,5.11884,1805.4,1805.3,1.10757]
[1745991815260,5.11884,1805.4,1805.3,1.6905]
[1745991816166,3.516,1805.5,1805.3,1.6905]
[1745991816467,4.62344,1805.5,1805.4,1.96401]
[1745991817067,4.62344,1805.5,1805.4,5.79201]
[1745991817472,1.10744,1805.5,1805.4,5.79201]
[1745991817671,1.10744,1805.5,1805.4,6.58521]
[1745991818074,2.82183,1805.6,1805.4,6.58521]
[1745991818373,2.82183,1805.6,1805.5,1.6189]
[1745991819173,1.7144,1805.6,1805.3,1.10752]
[1745991819375,1.10757,1805.3,1805.2,2.5165]
[1745991820174,2.71717,1805.3,1805.2,6.3445]
[1745991820873,2.71717,1805.3,1805.2,7.45213]
[1745991821075,0.8215,1805.4,1805.2,7.45213]
[1745991821275,3.53861,1805.4,1805.3,1.6988]
[1745991828378,1.10757,1805.3,1805.2,0.8177]
[1745991828581,2.75747,1805.3,1805.2,0.8177]
[1745991828881,2.75747,1805.3,1805.2,2.4995]
[1745991829381,2.75747,1805.3,1805.2,6.3275]
[1745991829583,2.75747,1805.3,1805.2,3.828]
[1745991830286,1.10763,1805.2,1805.1,2.78945]
[1745991830475,1.10769,1805.1,1805.0,4.3155]
[1745991830683,1.95629,1805.1,1805.0,5.9973]
[1745991831182,1.95629,1805.1,1805.0,9.8253]
[1745991831383,0.8486,1805.1,1805.0,9.8253]
[1745991834879,1.95629,1805.1,1805.0,6.6175]
[1745991836783,0.8486,1805.1,1805.0,6.6175]
[1745991837386,1.10767,1805.2,1805.1,1.10769]
[1745991837582,1.10767,1805.2,1805.1,2.72359]
[1745991840493,1.10767,1805.2,1805.1,1.6159]
[1745991840796,2.79287,1805.2,1805.1,1.6159]
[1745991843494,9.893,1805.2,1804.9,0.8547]
[1745991843691,1.10781,1804.9,1804.8,1.6308]
[1745991844699,1.10787,1804.8,1804.7,10.60137639]
[1745991844891,1.10787,1804.8,1804.7,12.23217639]
[1745991845494,1.92087,1804.8,1804.7,12.23217639]
[1745991847798,1.92087,1804.8,1804.7,4.8386]
[1745991851099,1.10787,1804.8,1804.7,5.94654]
[1745991851299,1.10787,1804.8,1804.7,4.8386]
[1745991852095,9.48349,1804.8,1804.3,3.2078]
[1745991852299,9.48349,1804.8,1804.5,1.6378]
[1745991852300,1.108,1804.6,1804.5,1.6378]
[1745991852703,2.7121,1804.6,1804.5,1.6378]
[1745991853603,1.10806,1804.5,1804.4,42.77542]
[1745991853804,1.10806,1804.5,1804.4,44.36832]
[1745991854102,1.10806,1804.5,1804.4,43.2602]
[1745991854298,1.10806,1804.5,1804.4,47.0882]
[1745991856205,1.10423241,1804.5,1804.4,47.0882]
[1745991856406,2.71214,1804.6,1804.4,48.19632]
[1745991856597,2.71214,1804.6,1804.5,1.6649]
[1745991857798,1.10806,1804.5,1804.4,0.8673]
[1745991857998,2.70076,1804.5,1804.4,2.5322]
[1745991858796,1.6146,1804.7,1804.4,3.64032]
[1745991859100,1.10806,1804.5,1804.4,1.97542]
[1745991859407,1.10806,1804.5,1804.4,0.8673]
[1745991861110,1.10806,1804.5,1804.4,1.97542]
[1745991862501,1.10806,1804.5,1804.4,0.8673]
[1745991863509,1.10812,1804.4,1804.3,45.11593]
[1745991864205,1.10812,1804.4,1804.3,48.94393]
[1745991864501,1.10812,1804.4,1804.3,8.14393]
[1745991865003,1.10812,1804.4,1804.3,48.94393]
[1745991865207,1.10811,1804.5,1804.4,1.10812]
[1745991865706,1.10812,1804.4,1804.3,48.94393]
[1745991866904,1.10812,1804.5,1804.4,1.10812]
[1745991868109,1.10812,1804.5,1804.3,45.11593]
[1745991868308,1.10812,1804.5,1804.3,44.0078]
[1745991868508,1.10812,1804.5,1804.4,1.10812]
[1745991869010,1.10812,1804.5,1804.3,45.11593]
[1745991870110,1.10812,1804.4,1804.3,45.11593]
[1745991870309,1.6244,1804.6,1804.3,45.11593]
[1745991870502,1.10812,1804.4,1804.3,45.11593]
[1745991870703,1.10818,1804.3,1804.2,0.8043]
[1745991870914,1.10824,1804.2,1804.1,3.2078]
[1745991871109,3.58644,1804.2,1804.1,4.3161]
[1745991871309,2.4782,1804.2,1804.1,4.3161]
[1745991871512,3.506,1804.5,1804.1,3.2078]
[1745991871810,1.1081,1804.5,1804.4,1.10812]
[1745991873011,1.10812,1804.4,1804.3,1.10813]
[1745991874114,1.10812,1804.4,1804.3,4.93613]
[1745991875813,1.10812,1804.4,1804.3,6.56943]
[1745991877313,1.10812,1804.4,1804.3,2.74143]
[1745991878116,1.10812,1804.4,1804.3,6.56943]
[1745991880018,1.10811,1804.5,1804.4,1.10809]
[1745991881621,10.30005,1804.6,1804.5,1.10806]
[1745991882817,1.10809,1804.5,1804.4,1.10808]
[1745991883210,1.10809,1804.5,1804.4,4.93608]
[1745991884723,1.10799,1804.7,1804.6,1.10799]
[1745991884920,1.10802,1804.6,1804.5,1.10802]
[1745991885122,1.10802,1804.6,1804.5,4.93602]
[1745991886116,1.10802,1804.6,1804.5,3.828]
[1745991886421,2.84642,1804.6,1804.5,3.828]
[1745991886616,2.84642,1804.6,1804.5,44.628]
[1745991887118,2.84642,1804.6,1804.5,3.828]
[1745991887329,1.10806,1804.5,1804.4,1.10808]
[1745991887622,2.84646,1804.5,1804.4,41.90808]
[1745991888121,2.84646,1804.5,1804.4,45.73608]
[1745991888724,2.84646,1804.5,1804.4,3.828]
[1745991889123,2.84646,1804.5,1804.4,40.8]
[1745991889324,1.10812,1804.4,1804.3,4.0424]
[1745991889525,4.51942,1804.4,1804.3,3.2078]
[1745991889925,4.51942,1804.4,1804.3,44.0078]
[1745991890331,4.51942,1804.4,1804.3,3.2078]
[1745991890724,1.10818,1804.3,1804.2,1.10823]
[1745991890924,1.10818,1804.3,1804.2,4.31603]
[1745991891127,1.10818,1804.3,1804.2,8.14403]
[1745991892224,2.84028,1804.3,1804.2,8.14403]
[1745991893025,2.84028,1804.3,1804.2,7.0358]
[1745991894029,2.84028,1804.3,1804.2,8.14404]
[1745991894224,2.84028,1804.3,1804.2,48.94404]
[1745991894431,2.84028,1804.3,1804.2,8.14404]
[1745991895030,2.84028,1804.3,1804.2,7.0358]
[1745991895233,2.84028,1804.3,1804.2,3.2078]
[1745991896826,1.10818,1804.3,1804.2,4.31604]
[1745991897025,1.10818,1804.3,1804.2,6.03454]
[1745991899127,1.10818,1804.3,1804.2,9.86254]
[1745991900130,1.10818,1804.3,1804.2,6.03454]
[1745991900436,2.78736,1804.4,1804.3,1.10818]
[1745991900633,2.78736,1804.4,1804.3,1.6432]
[1745991901529,6.7128,1804.6,1804.3,1.6432]
[1745991901735,8.65923,1804.6,1804.4,2.76988]
[1745991901934,8.65923,1804.6,1804.5,1.6996]
[1745991902234,5.15423,1804.6,1804.5,1.6996]
[1745991902736,6.79383,1804.6,1804.5,1.6996]
[1745991903634,3.58603,1804.6,1804.5,1.6996]
[1745991905933,1.94643,1804.6,1804.5,2.80766]
[1745991906133,4.61396,1804.7,1804.6,1.108]
[1745991906330,4.61396,1804.7,1804.6,2.8615]
[1745991907334,4.61396,1804.7,1804.6,1.7535]
[1745991907537,6.29906,1804.7,1804.6,1.7535]
[1745991908935,5.1911,1804.7,1804.5,3.828]
[1745991909134,2.7276,1804.6,1804.5,3.828]
[1745991909333,4.38962,1804.6,1804.1,7.39357639]
[1745991909641,1.10824,1804.2,1804.1,7.39357639]
[1745991910429,1.1083,1804.1,1804.0,9.89657639]
[1745991910630,1.9249,1804.1,1804.0,9.89657639]
[1745991911039,3.5482,1804.1,1804.0,9.89657639]
[1745991914239,3.5482,1804.1,1804.0,2.503]
[1745991917147,3.5482,1804.1,1804.0,6.331]
[1745991918941,3.5482,1804.1,1804.0,3.828]
[1745991919335,1.10843,1803.9,1803.8,4.0489]
[1745991920150,1.10843,1803.9,1803.8,8.98539]
[1745991923649,1.10843,1803.9,1803.8,5.77759]
[1745991924449,1.10843,1803.9,1803.8,4.6691]
[1745991924651,1.10843,1803.9,1803.8,3.828]
[1745991926950,1.97093,1803.9,1803.8,3.828]
[1745991928851,5.17873,1803.9,1803.8,3.828]
[1745991929248,5.17873,1803.9,1803.5,2.76457]
[1745991929249,1.10861,1803.6,1803.5,2.76457]
[1745991930252,1.10861,1803.6,1803.5,6.59257]
[1745991932852,1.10861,1803.6,1803.5,4.6756]
[1745991933754,1.10861,1803.6,1803.5,5.78427]
[1745991937150,1.10861,1803.6,1803.5,7.43927]
[1745991941947,1.10861,1803.6,1803.5,6.3306]
[1745991945063,1.97051,1803.6,1803.5,7.43927]
[1745991945263,1.97051,1803.6,1803.5,3.61127]
[1745991945562,1.97051,1803.6,1803.5,2.5026]
[1745991945763,1.97051,1803.6,1803.5,3.61127]
[1745991948169,1.97051,1803.6,1803.5,7.43927]
[1745991948472,1.97051,1803.6,1803.5,6.3306]
[1745991948770,1.97051,1803.6,1803.5,7.43927]
[1745991950174,1.97051,1803.6,1803.5,6.3306]
[1745991950376,1.97051,1803.6,1803.5,5.483]
[1745991951370,1.97051,1803.6,1803.5,1.655]
[1745991953073,1.10873,1803.4,1803.3,3.56286]
[1745991953774,3.57032,1803.5,1803.4,1.10873]
[1745991954073,3.57032,1803.5,1803.4,2.72933]
[1745991955474,3.57032,1803.5,1803.4,1.6206]
[1745991956482,3.57032,1803.5,1803.4,2.72933]
[1745991956673,3.57032,1803.5,1803.3,0.8043]
[1745991956881,1.10873,1803.4,1803.3,3.53485]
[1745991957077,1.10873,1803.4,1803.3,7.36285]
[1745991957979,1.10873,1803.4,1803.3,10.57065]
[1745991959382,1.10863,1803.6,1803.5,1.10861]
[1745991959681,1.10867,1803.5,1803.4,1.6218]
[1745991959979,1.10867,1803.5,1803.4,2.73053]
[1745991960178,1.10867,1803.5,1803.4,6.55853]
[1745991960775,1.10867,1803.5,1803.4,5.4498]
[1745991961082,2.84457,1803.5,1803.4,5.4498]
[1745991961379,3.65887,1803.5,1803.4,5.4498]
[1745991961580,3.65887,1803.5,1803.4,3.828]
[1745991962984,6.86667,1803.5,1803.4,3.828]
[1745991963282,1.10886,1803.2,1803.1,2.81511]
[1745991964382,1.10892,1803.1,1803.0,2.13151]
[1745991964581,3.61202,1803.1,1803.0,2.13151]
[1745991964982,3.61202,1803.1,1803.0,4.60581]
[1745991965681,1.10892,1803.1,1803.0,4.60581]
[1745991966279,1.10892,1803.1,1803.0,3.73051]
[1745991966473,2.81472,1803.1,1803.0,2.13151]
[1745991967181,1.10898,1803.0,1802.9,9.14387639]
[1745991967378,1.95798,1803.0,1802.9,9.14387639]
[1745991968477,2.78538,1803.0,1802.9,9.14387639]
[1745991969584,2.78538,1803.0,1802.9,1.7503]
[1745991970088,1.10898,1803.0,1802.9,1.7503]
[1745991970286,7.5762,1803.2,1802.9,6.68729]
[1745991970486,1.10896,1803.1,1803.0,0.8286]
[1745991971186,1.10896,1803.1,1803.0,4.6566]
[1745991971484,1.10896,1803.1,1803.0,3.828]
[1745991971786,2.78046,1803.1,1803.0,3.828]
[1745991972286,1.10904,1802.9,1802.8,0.8286]
[1745991973080,1.10904,1802.9,1802.8,4.6566]
[1745991973380,1.91684,1802.9,1802.8,4.6566]
[1745991973988,3.56694,1802.9,1802.8,3.828]
[1745991980291,1.10923,1802.6,1802.5,4.0831]
[1745991980790,1.10923,1802.6,1802.5,5.19239]
[1745991980984,1.10923,1802.6,1802.5,4.0831]
[1745991981182,1.10923,1802.6,1802.5,7.9111]
[1745991981382,1.10923,1802.6,1802.5,7.0358]
[1745991983192,1.10923,1802.6,1802.5,3.828]
[1745991983784,1.94923,1802.6,1802.5,3.828]
[1745991984178,1.10935,1802.4,1802.3,4.016]
[1745991984985,1.10935,1802.4,1802.3,5.7558]
[1745991985182,1.10935,1802.4,1802.3,9.5838]
[1745991985892,1.10935,1802.4,1802.3,10.69321]
[1745991986192,1.10935,1802.4,1802.3,9.5838]
[1745991986595,1.10935,1802.4,1802.3,10.69321]
[1745991986895,1.10935,1802.4,1802.3,9.5838]
[1745991987088,1.10935,1802.4,1802.3,6.376]
[1745991987885,1.10935,1802.4,1802.3,7.48541]
[1745991990095,1.10935,1802.4,1802.3,6.376]
[1745991990796,1.10935,1802.4,1802.3,7.48541]
[1745991991299,1.10935,1802.4,1802.3,6.376]
[1745991992301,1.10935,1802.4,1802.3,7.48541]
[1745991993298,1.10935,1802.4,1802.3,6.376]
[1745991997303,1.10935,1802.4,1802.3,7.48541]
[1745991997505,1.10935,1802.4,1802.3,6.376]
[1745991998303,1.10935,1802.4,1802.3,3.828]
[1745991998705,1.10935,1802.4,1802.3,5.4099]
[1745992004408,1.10935,1802.4,1802.3,6.51931]
[1745992004605,1.10935,1802.4,1802.3,5.4099]
[1745992005207,1.92765,1802.4,1802.3,5.4099]
[1745992006207,1.92765,1802.4,1802.3,1.5819]
[1745992006400,2.76255,1802.4,1802.3,1.5819]
[1745992007207,2.75811393,1802.4,1802.3,1.5819]
[1745992008502,1.10941,1802.3,1802.2,1.10947]
[1745992008709,2.76551,1802.3,1802.2,2.80887]
[1745992009104,2.76551,1802.3,1802.2,6.63687]
[1745992009304,2.76551,1802.3,1802.2,5.5274]
[1745992010907,2.76551,1802.3,1802.2,6.63687]
[1745992011214,1.10941,1802.3,1802.2,6.63687]
[1745992014113,1.10941,1802.3,1802.2,9.84467]
[1745992015713,1.10941,1802.3,1802.2,9.84461]
[1745992016211,1.10939,1802.4,1802.3,1.10937]
[1745992016413,1.10939,1802.4,1802.3,2.83177]
[1745992017314,1.10939,1802.4,1802.3,6.65977]
[1745992019217,2.78115,1802.5,1802.4,1.10935]
[1745992019415,3.524,1802.6,1802.5,1.10929]
[1745992019716,3.524,1802.6,1802.5,1.93529]
[1745992019913,4.63323,1802.6,1802.5,1.93529]
[1745992020214,4.63323,1802.6,1802.5,5.76329]
[1745992023718,1.10923,1802.6,1802.5,5.76329]
[1745992024014,1.10923,1802.6,1802.5,4.654]
[1745992024322,1.10923,1802.6,1802.5,3.828]
[1745992024620,2.80743,1802.6,1802.5,3.828]
[1745992024821,3.60163,1802.6,1802.5,3.828]
[1745992025225,1.10929,1802.5,1802.4,1.10934]
[1745992025417,1.93199,1802.5,1802.4,1.10934]
[1745992025617,1.10935,1802.4,1802.3,2.77186]
[1745992026118,1.10935,1802.4,1802.3,6.59986]
[1745992030132,1.10935,1802.4,1802.3,4.6852]
[1745992030330,2.69535,1802.4,1802.3,4.6852]
[1745992030732,1.10935,1802.4,1802.3,5.79461]
[1745992032223,1.10935,1802.4,1802.3,9.00241]
[1745992033022,1.10935,1802.4,1802.3,3.828]
[1745992033222,2.86315,1802.4,1802.3,3.828]
[1745992034223,1.10941,1802.3,1802.2,3.2078]
[1745992035135,1.10941,1802.3,1802.2,7.0358]
[1745992035334,1.10941,1802.3,1802.2,8.6767]
[1745992036037,1.96611,1802.3,1802.2,8.6767]
[1745992036928,2.79821,1802.3,1802.2,8.6767]
[1745992038236,2.79821,1802.3,1802.2,4.8487]
[1745992040039,2.79821,1802.3,1802.2,1.6409]
[1745992040440,1.10947,1802.2,1802.1,0.8137]
[1745992040633,2.75227,1802.2,1802.1,0.8137]
[1745992041442,6.7208,1802.6,1802.1,9.0215]
[1745992041642,1.10939,1802.4,1802.3,1.1094]
[1745992041842,1.10939,1802.4,1802.3,2.7907]
[1745992042242,1.10934,1802.5,1802.4,1.10935]
[1745992042539,7.32460362,1802.6,1802.4,1.6255]
[1745992042732,7.32460362,1802.6,1802.5,4.31709]
[1745992042938,7.32460362,1802.6,1802.5,5.16679]
[1745992043145,7.32460362,1802.6,1802.5,8.99479]
[1745992043340,7.32460362,1802.6,1802.5,10.62029]
[1745992044242,8.43383362,1802.6,1802.5,9.511]
[1745992044440,8.43383362,1802.6,1802.5,10.62029]
[1745992044645,7.32460362,1802.6,1802.5,10.62029]
[1745992045335,1.1092,1802.7,1802.6,1.10923]
[1745992045543,1.10916,1802.7,1802.6,2.69363]
[1745992046942,1.10915,1802.8,1802.6,2.69363]
[1745992047141,1.10915,1802.8,1802.7,1.5844]
[1745992047642,1.10915,1802.8,1802.7,2.69356]
[1745992048141,1.10915,1802.8,1802.7,6.52156]
[1745992048741,1.10915,1802.8,1802.7,6.52152]
[1745992048742,1.1091,1802.8,1802.7,6.52152]
[1745992048945,1.1091,1802.8,1802.7,5.4124]
[1745992050338,1.1091,1802.8,1802.7,6.52156]
[1745992050540,1.657,1802.9,1802.7,6.52156]
[1745992050541,4.0549,1803.0,1802.7,5.4124]
[1745992050740,4.3168,1803.0,1802.9,1.10904]
[1745992051136,4.3168,1803.0,1802.9,6.52444]
[1745992051331,3.61306,1803.1,1802.9,6.52444]
[1745992051538,1.95606,1803.1,1803.0,1.6961]
[1745992052245,1.95606,1803.1,1803.0,5.5241]
[1745992053045,3.59286,1803.1,1803.0,5.5241]
[1745992056138,1.10892,1803.1,1803.0,6.63304]
[1745992056338,1.10892,1803.1,1803.0,5.5241]
[1745992057039,2.82662,1803.1,1803.0,5.5241]
[1745992066350,2.82662,1803.1,1803.0,3.828]
[1745992067245,2.82662,1803.1,1803.0,5.5383]
[1745992069954,2.82662,1803.1,1803.0,3.828]
[1745992072152,1.1091,1802.8,1802.7,3.2078]
[1745992072451,1.1091,1802.8,1802.7,4.8832]
[1745992073154,1.1091,1802.8,1802.7,8.7112]
[1745992073354,1.1091,1802.8,1802.7,5.5034]
[1745992074756,1.1091,1802.8,1802.7,6.61256]
[1745992074946,1.1091,1802.8,1802.7,5.5034]
[1745992075149,1.1091,1802.8,1802.7,6.61256]
[1745992077853,1.10908,1802.9,1802.8,1.10907]
[1745992078052,1.10908,1802.9,1802.8,3.59287]
[1745992078250,1.10908,1802.9,1802.8,7.42087]
[1745992079558,1.10903,1803.0,1802.9,1.10901]
[1745992079761,1.10903,1803.0,1802.9,3.67661]
[1745992080259,1.10903,1803.0,1802.9,7.50461]
[1745992080560,4.31677,1803.1,1803.0,1.10898]
[1745992080758,4.31677,1803.1,1803.0,2.82808]
[1745992080958,4.31677,1803.1,1803.0,1.7191]
[1745992081259,4.31677,1803.1,1803.0,5.5471]
[1745992082059,4.31677,1803.1,1803.0,6.65608]
[1745992082361,4.31677,1803.1,1803.0,5.5471]
[1745992083061,4.31677,1803.1,1803.0,6.65608]
[1745992083963,1.10897,1803.1,1803.0,6.65608]
[1745992085165,1.10897,1803.1,1803.0,47.45608]
[1745992090373,2.82687,1803.1,1803.0,47.45608]
[1745992092877,1.1089,1803.2,1803.1,1.10892]
[1745992093070,1.1089,1803.2,1803.1,3.56502]
[1745992093565,1.1089,1803.2,1803.1,2.4561]
[1745992093770,1.1089,1803.2,1803.1,1.6651]
[1745992093970,1.10892,1803.1,1803.0,44.628]
[1745992094170,2.78602,1803.1,1803.0,44.628]
[1745992094559,2.78602,1803.1,1803.0,3.828]
[1745992095565,2.78602,1803.1,1803.0,4.93698]
[1745992095766,2.78602,1803.1,1803.0,6.53698]
[1745992096071,2.78602,1803.1,1803.0,5.428]
[1745992098476,2.78602,1803.1,1803.0,6.53698]
[1745992098681,1.96592,1803.1,1803.0,6.53698]
[1745992099582,1.96592,1803.1,1803.0,5.428]
[1745992105684,1.96592,1803.1,1803.0,3.828]
[1745992106285,1.10898,1803.0,1802.9,2.4806]
[1745992106786,1.10898,1803.0,1802.9,3.58964]
[1745992107286,1.10898,1803.0,1802.9,7.41764]
[1745992108785,1.10896,1803.1,1802.9,7.41764]
[1745992108985,1.10896,1803.1,1803.0,2.75438]
[1745992109685,1.10896,1803.1,1803.0,1.6454]
[1745992110081,1.10896,1803.1,1803.0,2.75438]
[1745992110291,1.10896,1803.1,1803.0,6.58238]
[1745992112088,1.10896,1803.1,1803.0,7.44358]
[1745992114684,3.5123,1803.2,1803.1,1.10892]
[1745992114886,1.8988,1803.2,1803.1,2.83582]
[1745992119086,0.7899,1803.2,1803.1,2.83582]
[1745992119289,8.43326362,1803.6,1803.1,9.49919]
[1745992119486,7.32460362,1803.6,1803.5,1.10867]
[1745992120195,7.32460362,1803.6,1803.5,4.93667]
[1745992120384,7.32460362,1803.6,1803.5,6.61707]
[1745992120994,7.32460362,1803.6,1803.5,8.27777]
[1745992121193,8.43321362,1803.6,1803.5,8.27777]
[1745992123890,1.10861,1803.6,1803.5,8.27777]
[1745992125098,1.10861,1803.6,1803.5,6.3554]
[1745992125289,2.71411,1803.6,1803.5,7.46407]
[1745992126297,1.90958,1803.7,1803.6,1.10861]
[1745992126497,1.90958,1803.7,1803.6,2.80701]
[1745992126698,1.90958,1803.7,1803.6,3.66941]
[1745992130696,0.801,1803.7,1803.6,3.66941]
[1745992130996,2.71404,1803.8,1803.7,1.10855]
[1745992131197,3.54694,1803.8,1803.7,2.74895]
[1745992132196,3.54694,1803.8,1803.7,6.57695]
[1745992132392,0.8329,1803.8,1803.7,6.57695]
[1745992132598,0.8571,1803.9,1803.8,1.10849]
[1745992132798,0.8571,1803.9,1803.8,4.48889]
[1745992133100,0.8571,1803.9,1803.8,8.31689]
[1745992134100,1.96553,1803.9,1803.8,8.31689]
[1745992135599,0.8571,1803.9,1803.8,8.31689]
[1745992136799,1.96553,1803.9,1803.8,8.31689]
[1745992138406,1.96553,1803.9,1803.8,3.828]
[1745992139107,3.65493,1803.9,1803.8,4.93649]
[1745992139305,3.65493,1803.9,1803.8,6.56359]
[1745992140507,3.65493,1803.9,1803.8,5.4551]
[1745992141009,3.65493,1803.9,1803.8,6.56359]
[1745992142312,3.65493,1803.9,1803.8,5.4551]
[1745992143613,3.65493,1803.9,1803.8,6.56359]
[1745992144716,3.65493,1803.9,1803.8,5.4551]
[1745992144917,3.65493,1803.9,1803.8,6.56359]
[1745992145614,3.65493,1803.9,1803.8,3.828]
[1745992146115,1.10855,1803.7,1803.6,6.34706]
[1745992146315,1.10855,1803.7,1803.6,4.61656]
[1745992146816,3.65785,1803.7,1803.6,4.61656]
[1745992147016,3.65785,1803.7,1803.6,6.28736]
[1745992148715,3.65785,1803.7,1803.6,2.77936]
[1745992148917,3.65785,1803.7,1803.6,1.6708]
[1745992150107,1.10861,1803.6,1803.5,1.10863]
[1745992150306,2.71781,1803.6,1803.5,2.68693]
[1745992150919,2.71781,1803.6,1803.5,1.5783]
[1745992151311,2.71781,1803.6,1803.5,5.4063]
[1745992154718,2.71781,1803.6,1803.5,6.51497]
[1745992154919,1.10861,1803.6,1803.5,6.51497]
[1745992155118,1.10861,1803.6,1803.5,7.33627]
[1745992158724,1.10861,1803.6,1803.5,6.51497]
[1745992158923,2.82521,1803.6,1803.5,6.51497]
[1745992159721,1.10861,1803.6,1803.5,6.51497]
[1745992159922,1.10861,1803.6,1803.5,7.33147]
[1745992161322,1.10857,1803.7,1803.6,1.10861]
[1745992161621,1.10857,1803.7,1803.6,2.76551]
[1745992164017,1.10854,1803.8,1803.7,1.10855]
[1745992164316,1.10854,1803.8,1803.7,3.62375]
[1745992164517,1.94788,1803.9,1803.8,1.10849]
[1745992164718,1.10848,1803.9,1803.8,2.76779]
[1745992164920,1.10848,1803.9,1803.8,3.61979]
[1745992165126,1.10848,1803.9,1803.8,7.44779]
[1745992168225,2.74158,1803.9,1803.8,5.4873]
[1745992171432,2.74158,1803.9,1803.8,6.59579]
[1745992174832,1.10848,1803.9,1803.8,6.59579]
[1745992178538,1.10841,1804.0,1803.9,1.1084]
[1745992178730,1.10841,1804.0,1803.9,2.6009]
[1745992179438,1.10841,1804.0,1803.9,6.4289]
[1745992179638,1.10841,1804.0,1803.9,7.53733]
[1745992180136,1.10841,1804.0,1803.9,6.4289]
[1745992180438,1.10841,1804.0,1803.9,7.53733]
[1745992180628,1.10841,1804.0,1803.9,6.4289]
[1745992180824,1.10841,1804.0,1803.9,5.58]
[1745992181436,0.54226251,1804.0,1803.9,5.58]
[1745992182329,0.54226251,1804.0,1803.9,6.68843]
[1745992182530,0.54226251,1804.0,1803.9,5.58]
[1745992183439,0.54226251,1804.0,1803.9,6.68843]
[1745992185328,0.54226251,1804.0,1803.9,5.58]
[1745992185842,0.54226251,1804.0,1803.9,6.68843]
[1745992186436,0.54226251,1804.0,1803.9,5.58]
[1745992186639,2.18856251,1804.0,1803.9,5.58]
[1745992187946,2.18856251,1804.0,1803.9,6.68843]
[1745992188136,2.18856251,1804.0,1803.9,5.58]
[1745992189345,0.54226251,1804.0,1803.9,6.68843]
[1745992194547,0.54226251,1804.0,1803.9,5.58]
[1745992194748,0.54226251,1804.0,1803.9,6.68843]
[1745992197958,0.54226251,1804.0,1803.9,5.58]
[1745992198751,2.27826251,1804.0,1803.9,5.58]
[1745992200653,2.27826251,1804.0,1803.9,6.68843]
[1745992202551,0.54226251,1804.0,1803.9,6.68843]
[1745992203755,1.10835,1804.1,1804.0,1.10837]
[1745992203960,1.89716,1804.2,1804.1,1.1083]
[1745992204152,1.10826,1804.2,1804.1,1.1083]
[1745992204351,3.57893,1804.3,1804.2,1.10824]
[1745992204546,1.10824,1804.2,1804.1,2.83885]
[1745992205256,1.10821,1804.3,1804.2,1.10822]
[1745992205460,1.10821,1804.3,1804.2,1.7306]
[1745992205654,3.62151,1804.3,1804.2,1.7306]
[1745992206158,3.62151,1804.3,1804.2,5.5586]
[1745992208760,3.62151,1804.3,1804.2,6.66684]
[1745992208958,1.10817,1804.4,1804.2,5.5586]
[1745992209160,1.10817,1804.4,1804.3,3.2416]
[1745992210462,1.10817,1804.4,1804.3,4.34978]
[1745992210858,1.10817,1804.4,1804.3,2.4315]
[1745992211061,2.70907,1804.4,1804.3,2.4315]
[1745992217561,1.6009,1804.4,1804.1,1.90457]
[1745992217768,1.10824,1804.2,1804.1,1.6056]
[1745992218161,2.68884,1804.2,1804.1,1.6056]
[1745992220759,1.1083,1804.1,1804.0,8.65982]
[1745992220960,3.622,1804.1,1804.0,9.2131]
[1745992221161,3.622,1804.1,1804.0,2.4993]
[1745992221969,3.622,1804.1,1804.0,3.60767]
[1745992222169,3.622,1804.1,1804.0,6.3273]
[1745992223069,3.622,1804.1,1804.0,7.43567]
[1745992223367,3.622,1804.1,1804.0,5.4896]
[1745992223971,1.10829,1804.2,1804.1,1.10829]
[1745992224166,1.10829,1804.2,1804.1,3.66169]
[1745992224466,1.10829,1804.2,1804.1,4.50959]
[1745992224766,1.96032,1804.3,1804.2,1.10824]
[1745992224971,1.96032,1804.3,1804.2,1.7023]
[1745992225170,1.96032,1804.3,1804.2,6.63854]
[1745992225371,1.10822,1804.3,1804.2,6.63854]
[1745992225769,1.10822,1804.3,1804.2,5.5303]
[1745992227163,1.10822,1804.3,1804.2,6.63854]
[1745992232074,1.10822,1804.3,1804.2,5.5303]
[1745992232777,2.82772,1804.3,1804.2,3.828]
[1745992233276,1.10837,1804.0,1803.9,2.4745]
[1745992234076,2.82787,1804.0,1803.9,2.4745]
[1745992235176,2.82787,1804.0,1803.9,3.58293]
[1745992236379,1.10837,1804.0,1803.9,3.58293]
[1745992236880,1.10837,1804.0,1803.9,2.4745]
[1745992238481,1.10837,1804.0,1803.9,3.58293]
[1745992240883,1.10837,1804.0,1803.9,2.4745]